bitfinex/quotes_ETHUSD_20250923
["timestamp","ask_amount","ask_price","bid_price","bid_amount"]
[1758599375268,0.22326485,4197.9,4197.6,0.004]
[1758599375467,0.3522,4198.2,4197.6,2.3863022]
[1758599375764,0.35722488,4198.1,4197.6,0.004]
[1758599375964,0.22326555,4198.0,4197.6,2.38630552]
[1758599376165,0.22326555,4197.9,4197.6,2.38630552]
[1758599376366,0.3522,4198.2,4197.6,2.38630552]
[1758599376563,0.35722459,4198.1,4197.6,0.004]
[1758599376895,0.22326537,4198.0,4197.6,0.004]
[1758599377102,0.22326537,4197.9,4197.6,2.38631333]
[1758599377302,0.1184,4198.2,4197.6,2.38631333]
[1758599377500,0.22326509,4198.1,4197.9,2.38212117]
[1758599377701,0.22326509,4198.0,4197.9,2.38212117]
[1758599378025,0.22326509,4198.0,4197.9,2.8542426]
[1758599378188,0.13394857,4198.3,4198.0,2.382059]
[1758599378371,0.22324618,4198.2,4198.1,0.1184]
[1758599378573,0.22324618,4198.2,4198.1,2.50042996]
[1758599378786,0.22324618,4198.2,4198.1,0.1184]
[1758599379204,0.51432955,4198.6,4198.1,0.5667]
[1758599379370,0.35726227,4198.5,4198.1,0.5667]
[1758599379570,0.001,4198.2,4198.1,0.1184]
[1758599379770,0.22429139,4198.2,4198.1,0.1184]
[1758599380827,0.22429667,4198.2,4198.1,2.50042996]
[1758599382917,0.001,4198.2,4198.1,0.1184]
[1758599383883,0.001,4198.2,4198.1,2.50042996]
[1758599384188,0.001,4198.2,4198.1,0.1184]
[1758599384821,0.001,4198.2,4198.1,2.50042996]
[1758599384993,0.001,4198.2,4198.1,0.1184]
[1758599387128,0.001,4198.2,4198.1,2.93082996]
[1758599387309,0.001,4198.2,4198.1,3.77982756]
[1758599388220,0.001,4198.2,4198.1,3.75582756]
[1758599388605,0.001,4198.2,4198.1,0.9433976]
[1758599388811,0.001,4198.2,4198.1,3.75582756]
[1758599389538,0.001,4198.2,4198.1,3.32542756]
[1758599389746,7.22654991,4198.2,4197.6,0.004]
[1758599389919,7.22654991,4198.2,4197.6,4.103]
[1758599389920,1.01264494,4198.1,4197.6,4.103]
[1758599390102,0.87872368,4198.0,4197.6,4.103]
[1758599390305,0.001,4198.2,4197.6,6.48530012]
[1758599390845,0.22321756,4198.1,4197.6,4.103]
[1758599391022,0.001,4198.2,4197.6,4.103]
[1758599391353,0.22321824,4198.1,4197.7,0.45422256]
[1758599391529,0.001,4198.2,4197.8,2.38215431]
[1758599391730,0.22321891,4198.1,4197.9,4.098]
[1758599392041,0.001,4198.2,4197.9,4.098]
[1758599392241,0.2273,4198.1,4197.9,4.098]
[1758599392950,0.001,4198.2,4197.9,4.098]
[1758599393450,0.2283,4198.2,4197.9,4.098]
[1758599394518,0.001,4198.2,4197.9,4.098]
[1758599394717,0.001,4198.2,4198.0,2.40590756]
[1758599394921,0.001,4198.2,4198.1,2.38202996]
[1758599395160,0.001,4198.2,4198.1,2.83642996]
[1758599395337,0.001,4198.2,4198.1,2.38202996]
[1758599396228,0.001,4198.2,4198.1,4.096]
[1758599396435,0.2283,4198.2,4198.1,4.096]
[1758599397220,0.2283,4198.2,4198.1,4.2144]
[1758599397923,0.6565,4198.2,4198.1,4.2144]
[1758599398133,0.6565,4198.2,4198.1,0.1184]
[1758599398336,0.6565,4198.2,4197.6,0.004]
[1758599398558,0.6565,4198.2,4197.9,0.1184]
[1758599398856,0.6565,4198.2,4197.7,4.096]
[1758599398857,1.01259589,4198.1,4197.6,0.004]
[1758599399025,0.35709589,4198.0,4197.6,4.1]
[1758599399219,0.22318334,4197.9,4197.6,4.1]
[1758599399449,0.2273,4197.8,4197.6,4.1]
[1758599400264,0.4282,4198.1,4197.6,4.1]
[1758599400568,1.01258993,4198.0,4197.6,4.1]
[1758599400742,0.22318181,4197.9,4197.6,4.1]
[1758599401065,0.6555,4197.9,4197.6,4.1]
[1758599401372,0.2273,4197.8,4197.6,4.1]
[1758599402561,0.6555,4197.7,4197.6,0.004]
[1758599403683,3.34152199,4197.7,4197.6,0.004]
[1758599403847,4.33113212,4197.7,4197.6,0.004]
[1758599404356,1.94887517,4197.7,4197.6,0.004]
[1758599404561,1.43469196,4197.7,4197.6,0.004]
[1758599404759,3.81691361,4197.7,4197.6,0.004]
[1758599406283,1.30080687,4197.7,4197.6,0.004]
[1758599406486,3.68306382,4197.7,4197.6,0.004]
[1758599406682,1.30080687,4197.7,4197.6,0.004]
[1758599407183,0.87260687,4197.7,4197.6,0.004]
[1758599408955,0.56884183,4197.7,4197.6,0.004]
[1758599409887,2.95109878,4197.7,4197.6,0.004]
[1758599410075,3.37929878,4197.7,4197.6,0.004]
[1758599412617,9.76183892,4197.7,4197.6,0.004]
[1758599412769,14.36727699,4197.7,4197.6,0.004]
[1758599413089,16.04221975,4197.7,4197.6,0.004]
[1758599413706,15.52878168,4197.7,4197.6,0.004]
[1758599415394,16.04208365,4197.7,4197.6,0.004]
[1758599415595,11.95008365,4197.7,4197.6,0.004]
[1758599415807,3.31899582,4197.7,4197.6,0.004]
[1758599416008,0.47521105,4197.7,4197.6,0.004]
[1758599416209,0.22314183,4197.7,4197.6,0.004]
[1758599416398,2.50143156,4198.1,4197.6,0.4766]
[1758599416604,0.35642551,4198.0,4197.7,0.4726]
[1758599416785,0.22276597,4197.9,4197.7,0.4726]
[1758599417120,2.51574664,4198.0,4197.7,0.4726]
[1758599417324,2.3820871,4198.0,4197.7,0.4726]
[1758599417620,0.22277309,4197.9,4197.7,0.4726]
[1758599417822,2.3820871,4198.0,4197.7,0.4726]
[1758599418034,2.38215083,4197.9,4197.6,0.004]
[1758599418213,1.43055337,4197.9,4197.6,0.004]
[1758599418428,2.38225695,4197.7,4197.6,0.004]
[1758599418596,2.6050886,4197.7,4197.6,0.004]
[1758599418786,3.2910886,4197.7,4197.6,0.004]
[1758599419317,3.42481511,4197.7,4197.6,0.004]
[1758599419490,2.64316906,4197.7,4197.6,0.004]
[1758599419689,4.31283165,4197.7,4197.6,0.004]
[1758599419914,6.6950886,4197.7,4197.6,0.004]
[1758599420945,7.0618071,4197.7,4197.6,0.004]
[1758599422746,4.67955015,4197.7,4197.6,0.004]
[1758599423448,4.67855015,4197.7,4197.6,0.004]
[1758599423647,11.50555015,4197.7,4197.6,0.004]
[1758599425364,14.1208071,4197.7,4197.6,0.004]
[1758599425559,11.73855015,4197.7,4197.6,0.004]
[1758599426351,12.25250804,4197.7,4197.6,0.004]
[1758599428419,10.54576499,4197.7,4197.6,0.004]
[1758599428725,10.99876499,4197.7,4197.6,0.004]
[1758599429417,8.61650804,4197.7,4197.6,0.004]
[1758599429847,10.54576499,4197.7,4197.6,0.004]
[1758599430013,10.99876499,4197.7,4197.6,0.004]
[1758599430213,8.61704822,4197.7,4197.6,0.004]
[1758599431341,10.99930517,4197.7,4197.6,0.004]
[1758599432215,12.75809013,4197.7,4197.6,0.004]
[1758599432541,10.37583318,4197.7,4197.6,0.004]
[1758599432717,8.61704822,4197.7,4197.6,0.004]
[1758599432919,10.54730517,4197.7,4197.6,0.004]
[1758599433310,11.00030517,4197.7,4197.6,0.004]
[1758599433840,10.54730517,4197.7,4197.6,0.004]
[1758599434445,11.11870517,4197.7,4197.6,0.004]
[1758599434647,13.56154277,4197.7,4197.6,0.004]
[1758599436063,13.10854277,4197.7,4197.6,0.004]
[1758599437975,13.10913991,4197.7,4197.6,0.004]
[1758599438335,13.56213991,4197.7,4197.6,0.004]
[1758599439034,13.10913991,4197.7,4197.6,0.004]
[1758599439235,10.49388296,4197.7,4197.6,0.004]
[1758599439547,13.10913991,4197.7,4197.6,0.004]
[1758599440056,12.87613991,4197.7,4197.6,0.004]
[1758599441726,13.10913991,4197.7,4197.6,0.004]
[1758599441923,13.56213991,4197.7,4197.6,0.004]
[1758599442749,13.10913991,4197.7,4197.6,0.004]
[1758599442963,12.87613991,4197.7,4197.6,0.004]
[1758599443267,13.10913991,4197.7,4197.6,0.004]
[1758599445070,8.05104536,4197.7,4197.6,0.004]
[1758599445276,7.93264536,4197.7,4197.6,0.4766]
[1758599445961,7.93264536,4197.7,4197.6,0.004]
[1758599446546,12.01504258,4197.7,4197.6,0.004]
[1758599446741,7.93304258,4197.7,4197.6,0.004]
[1758599447443,7.93304258,4197.7,4197.6,0.4591]
[1758599449473,0.001,4197.7,4197.6,9.23264458]
[1758599449676,0.001,4197.7,4197.6,11.01063255]
[1758599453664,0.001,4197.7,4197.6,15.08963255]
[1758599453866,0.001,4197.7,4197.6,17.14963255]
[1758599457489,0.001,4197.7,4197.6,17.14863255]
[1758599458254,0.001,4197.7,4197.6,10.89980167]
[1758599458585,0.001,4197.7,4197.6,16.66953255]
[1758599458785,0.001,4197.7,4197.6,17.12463255]
[1758599459968,0.001,4197.7,4197.6,16.66953255]
[1758599460162,0.001,4197.7,4197.6,16.7649878]
[1758599461019,0.001,4197.7,4197.6,11.0820878]
[1758599461217,0.001,4197.7,4197.6,17.2190878]
[1758599462115,0.001,4197.7,4197.6,11.1060878]
[1758599462321,0.001,4197.7,4197.6,17.2420878]
[1758599462813,0.001,4197.7,4197.6,17.2180878]
[1758599465398,0.001,4197.7,4197.6,17.2420878]
[1758599466088,0.001,4197.7,4197.6,20.2420878]
[1758599466539,0.001,4198.1,4198.0,2.3820867]
[1758599466703,0.001,4198.7,4198.6,2.38174629]
[1758599466902,0.001,4198.7,4198.6,17.88397717]
[1758599467091,0.001,4198.7,4198.6,18.36307717]
[1758599467288,0.001,4198.7,4198.6,18.71915707]
[1758599467620,0.001,4198.7,4198.6,19.02899803]
[1758599468228,0.001,4198.7,4198.6,19.82099803]
[1758599469867,0.51274207,4201.1,4200.2,2.380839]
[1758599470163,0.4334,4202.3,4200.2,17.7864593]
[1758599470164,0.6635,4201.0,4200.2,17.7864593]
[1758599470376,0.2331,4201.0,4200.2,20.01975785]
[1758599470527,0.2331,4201.0,4200.2,20.66288043]
[1758599470967,3.0,4202.1,4200.2,20.63888043]
[1758599471278,0.6665,4200.3,4200.2,4.15882697]
[1758599471423,0.6665,4200.3,4199.1,2.38146269]
[1758599471625,0.6665,4200.3,4199.0,0.792]
[1758599471626,0.6635,4200.2,4199.7,0.71562751]
[1758599471848,0.2331,4200.1,4199.9,6.24883088]
[1758599472072,0.003,4200.3,4200.2,2.380839]
[1758599472274,0.003,4200.3,4200.2,10.32083088]
[1758599472549,0.2361,4200.3,4200.2,4.072]
[1758599472977,0.6665,4200.3,4200.2,4.072]
[1758599473458,0.003,4200.3,4200.2,14.07722779]
[1758599474843,0.003,4200.3,4200.2,14.53232779]
[1758599475178,0.003,4200.3,4200.2,14.07722779]
[1758599475528,0.003,4200.3,4200.2,14.52142779]
[1758599475764,0.003,4200.3,4200.2,14.54542779]
[1758599476126,0.003,4200.3,4200.2,17.54542779]
[1758599477069,0.003,4200.3,4200.2,17.97312779]
[1758599478438,0.003,4200.3,4200.2,18.74112779]
[1758599478658,0.003,4200.3,4200.2,18.76512779]
[1758599479566,0.003,4200.3,4200.2,14.22492779]
[1758599479766,0.003,4200.3,4200.2,20.35292779]
[1758599479966,0.003,4200.3,4200.2,19.67932779]
[1758599480581,0.003,4200.3,4200.2,20.12022779]
[1758599481992,0.003,4200.3,4200.2,20.93622779]
[1758599482683,0.003,4200.3,4200.2,20.91222779]
[1758599483094,0.003,4200.3,4200.2,20.47132779]
[1758599483266,0.003,4200.3,4200.2,19.67932779]
[1758599483798,0.004,4200.3,4200.2,19.67932779]
[1758599484214,0.004,4200.3,4200.2,20.12022779]
[1758599484377,0.004,4200.3,4200.2,20.47132779]
[1758599484700,0.001,4200.8,4200.7,2.38055562]
[1758599484901,0.001,4200.8,4200.7,16.66474441]
[1758599485600,0.2313,4200.8,4200.7,16.66474441]
[1758599486008,0.001,4200.8,4200.7,16.66474441]
[1758599486501,0.001,4200.8,4200.7,17.09344441]
[1758599486706,0.001,4200.8,4200.7,17.40328537]
[1758599486907,0.659,4200.8,4200.7,9.44755562]
[1758599487406,0.2313,4200.8,4200.7,9.44755562]
[1758599488907,0.001,4200.8,4200.7,16.66474441]
[1758599490291,0.2313,4200.8,4200.7,16.66474441]
[1758599490681,0.659,4200.8,4200.7,16.66474441]
[1758599492001,0.659,4200.8,4200.7,9.44755562]
[1758599492420,0.2313,4200.8,4200.7,9.44755562]
[1758599493011,0.659,4200.8,4200.7,9.44755562]
[1758599493208,0.659,4200.8,4199.9,2.380955]
[1758599493379,0.658,4200.7,4200.0,4.064]
[1758599493714,0.658,4200.6,4200.1,4.064]
[1758599493881,0.658,4200.5,4200.2,4.064]
[1758599494081,0.9618625,4200.4,4200.3,4.064]
[1758599494285,0.9618625,4200.4,4200.2,4.064]
[1758599494514,0.658,4200.3,4200.0,4.064]
[1758599494834,2.38095513,4200.0,4199.5,4.064]
[1758599494997,0.658,4199.9,4199.1,2.38144501]
[1758599495184,0.658,4199.8,4199.2,4.064]
[1758599495680,0.658,4199.7,4199.2,4.064]
[1758599495882,0.658,4199.6,4199.2,6.44540466]
[1758599496102,0.658,4199.5,4199.2,6.44540466]
[1758599496315,0.2303,4199.5,4199.2,4.064]
[1758599496501,0.2303,4199.5,4199.3,2.38129865]
[1758599496893,0.2303,4199.4,4199.3,2.38129865]
[1758599499183,0.2303,4199.7,4199.4,2.38124014]
[1758599499382,0.2303,4199.6,4199.5,4.063]
[1758599499986,0.658,4199.6,4199.4,4.064]
[1758599500196,3.64312258,4200.5,4199.4,4.064]
[1758599500197,0.658,4199.5,4199.4,4.064]
[1758599500401,0.658,4199.5,4198.9,2.38156372]
[1758599500598,0.658,4199.4,4199.0,4.063]
[1758599500885,0.2303,4199.3,4199.0,4.063]
[1758599501084,0.51199623,4200.2,4199.0,4.063]
[1758599501085,0.2303,4199.7,4199.0,4.063]
[1758599501323,0.658,4199.6,4199.0,6.44451198]
[1758599501521,0.2303,4199.5,4199.3,0.004]
[1758599501709,0.658,4199.5,4199.4,4.063]
[1758599502490,0.658,4199.5,4199.3,0.004]
[1758599502690,2.80899256,4199.4,4199.3,0.004]
[1758599503003,3.11292182,4199.4,4199.3,0.004]
[1758599503523,3.34322182,4199.4,4199.3,0.004]
[1758599505793,0.96192926,4199.4,4199.3,0.004]
[1758599506520,3.34322182,4199.4,4199.3,0.004]
[1758599507326,7.21718879,4200.1,4200.0,0.81800926]
[1758599507536,18.16382873,4200.1,4200.0,0.81800926]
[1758599507718,20.54472442,4200.1,4200.0,0.81800926]
[1758599509303,20.03375929,4200.1,4200.0,0.81800926]
[1758599509506,20.72591007,4200.1,4200.0,0.81800926]
[1758599510307,21.2366827,4200.1,4200.0,0.81800926]
[1758599510514,20.72591007,4200.1,4200.0,0.81800926]
[1758599512313,21.51791007,4200.1,4200.0,0.81800926]
[1758599512535,22.02867412,4200.1,4200.0,0.81800926]
[1758599515705,22.02867412,4200.1,4199.3,0.004]
[1758599515706,2.38129256,4199.4,4199.3,0.004]
[1758599515906,17.01429934,4199.4,4199.3,0.004]
[1758599516141,17.70649934,4199.4,4199.3,0.004]
[1758599517417,24.76649934,4199.4,4199.3,0.004]
[1758599517630,17.54931055,4199.4,4199.3,0.004]
[1758599517832,19.62155952,4199.4,4199.3,0.004]
[1758599518433,20.13285404,4199.4,4199.3,0.004]
[1758599520043,7.21718879,4199.8,4199.3,0.004]
[1758599520215,2.38117915,4199.6,4199.3,0.004]
[1758599520420,4.06,4199.7,4199.3,0.004]
[1758599520628,2.38129256,4199.4,4199.3,0.004]
[1758599521253,8.50129256,4199.4,4199.3,0.004]
[1758599522259,8.72789256,4199.4,4199.3,0.004]
[1758599523853,16.83647165,4199.4,4199.3,0.004]
[1758599524040,16.19778135,4199.4,4199.3,0.004]
[1758599524242,18.28427683,4199.4,4199.3,0.004]
[1758599525628,2.38157612,4198.9,4198.8,0.004]
[1758599525827,7.08215299,4198.9,4198.8,0.004]
[1758599526051,7.56145299,4198.9,4198.8,0.004]
[1758599526456,7.30875299,4198.9,4198.8,0.004]
[1758599526650,8.4775704,4198.9,4198.8,0.004]
[1758599529253,8.08869353,4198.9,4198.8,0.004]
[1758599529764,7.83599353,4198.9,4198.8,0.004]
[1758599530337,4.058,4198.9,4198.8,0.004]
[1758599530886,4.058,4198.9,4198.4,1e-08]
[1758599530887,0.792,4198.7,4198.4,1e-08]
[1758599531070,10.39099181,4198.5,4198.4,1e-08]
[1758599531383,11.67403926,4198.5,4198.4,1e-08]
[1758599531535,3.17385975,4198.4,4198.3,1e-08]
[1758599531735,7.53403591,4198.4,4198.3,1e-08]
[1758599532133,8.40333083,4198.4,4198.3,1e-08]
[1758599532328,8.62993083,4198.4,4198.3,1e-08]
[1758599532569,14.87928767,4198.4,4198.3,1e-08]
[1758599533268,17.87928767,4198.4,4198.3,1e-08]
[1758599533475,3.1740867,4198.0,4197.9,1e-08]
[1758599533637,16.18803708,4198.0,4197.9,1e-08]
[1758599533840,16.41463708,4198.0,4197.9,1e-08]
[1758599535656,19.41463708,4198.0,4197.9,1e-08]
[1758599535862,25.19283399,4198.0,4197.9,1e-08]
[1758599537200,26.47232489,4198.0,4197.9,1e-08]
[1758599539494,6.17414345,4197.9,4197.8,1e-08]
[1758599539794,3.17425695,4197.7,4197.6,1e-08]
[1758599539996,10.16043797,4197.7,4197.6,1e-08]
[1758599540160,10.38873797,4197.7,4197.6,1e-08]
[1758599540361,2.38237045,4197.5,4197.4,1e-08]
[1758599540575,14.68542719,4197.5,4197.4,1e-08]
[1758599540803,25.76572719,4197.5,4197.4,1e-08]
[1758599540996,27.04521809,4197.5,4197.4,1e-08]
[1758599542866,26.81691809,4197.5,4197.4,1e-08]
[1758599543604,27.04521809,4197.5,4197.4,1e-08]
[1758599544217,26.81691809,4197.5,4197.4,1e-08]
[1758599544507,20.55607035,4197.5,4197.4,0.69840001]
[1758599545271,20.33351545,4197.5,4197.4,0.69840001]
[1758599545486,20.55503149,4197.5,4197.4,0.69840001]
[1758599545839,14.36751261,4197.5,4197.4,0.69840001]
[1758599545985,16.42851261,4197.5,4197.4,0.69840001]
[1758599547238,10.31051261,4197.5,4197.4,0.69840001]
[1758599547437,16.42751261,4197.5,4197.4,0.69840001]
[1758599548386,7.92814216,4197.5,4197.4,0.69840001]
[1758599548586,11.98414216,4197.5,4197.4,1.3935757]
[1758599548787,14.36651261,4197.5,4197.4,0.69840001]
[1758599549519,14.36663473,4197.5,4197.4,0.69840001]
[1758599550312,14.36563473,4197.5,4197.4,0.69840001]
[1758599551291,10.31063473,4197.5,4197.4,0.69840001]
[1758599551490,14.36563473,4197.5,4197.4,0.69840001]
[1758599551926,11.98326428,4197.5,4197.4,0.69840001]
[1758599552123,14.36563473,4197.5,4197.4,0.69840001]
[1758599552525,11.98326428,4197.5,4197.4,0.69840001]
[1758599553236,13.49737045,4197.5,4197.4,0.69840001]
[1758599553997,13.85310911,4197.5,4197.4,0.69840001]
[1758599554194,14.36539755,4197.5,4197.4,0.69840001]
[1758599554423,13.85319441,4197.5,4197.4,0.69840001]
[1758599554624,13.63077035,4197.5,4197.4,0.69840001]
[1758599555021,14.14346634,4197.5,4197.4,0.69840001]
[1758599555224,14.36598949,4197.5,4197.4,0.69840001]
[1758599555628,14.36498949,4197.5,4197.4,0.69840001]
[1758599556819,7.92861904,4197.5,4197.4,6.94775685]
[1758599557024,4.054,4197.6,4197.4,7.64293253]
[1758599557233,4.054,4197.6,4197.5,0.6984]
[1758599558167,6.56992847,4197.6,4197.5,0.6984]
[1758599558663,6.4363137,4197.6,4197.5,0.6984]
[1758599559230,6.56996601,4197.6,4197.5,0.6984]
[1758599561326,7.30620002,4197.6,4197.5,0.6984]
[1758599561526,6.56996601,4197.6,4197.5,0.6984]
[1758599563134,6.4363137,4197.6,4197.5,0.6984]
[1758599563570,6.56999178,4197.6,4197.5,0.6984]
[1758599564369,6.56999178,4197.6,4197.4,1e-08]
[1758599564663,2.38237045,4197.5,4197.4,0.24070001]
[1758599564824,2.38237045,4197.5,4197.4,1e-08]
[1758599565447,2.51604148,4197.5,4197.4,1e-08]
[1758599565628,4.41351555,4197.5,4197.4,1e-08]
[1758599565962,11.47351555,4197.5,4197.4,1e-08]
[1758599568057,11.23021555,4197.5,4197.4,1e-08]
[1758599568381,11.47351555,4197.5,4197.4,1e-08]
[1758599568671,11.23021555,4197.5,4197.4,1e-08]
[1758599568873,11.47351555,4197.5,4197.4,1e-08]
[1758599571366,12.1152487,4197.5,4197.4,1e-08]
[1758599571576,11.8719487,4197.5,4197.4,1e-08]
[1758599571790,16.42415538,4197.5,4197.4,0.68700001]
[1758599572190,16.42415538,4197.5,4197.4,0.45190001]
[1758599572352,17.30918853,4197.5,4197.4,1e-08]
[1758599572689,18.47887203,4197.5,4197.4,1e-08]
[1758599572888,12.36687203,4197.5,4197.4,1e-08]
[1758599573114,19.11960518,4197.5,4197.4,1e-08]
[1758599574557,19.11997048,4197.5,4197.4,1e-08]
[1758599576490,17.06525383,4197.5,4197.4,0.45190001]
[1758599576693,17.06525383,4197.5,4197.4,0.68700001]
[1758599576902,17.06425383,4197.5,4197.4,1e-08]
[1758599577483,16.42252068,4197.5,4197.4,1e-08]
[1758599577791,17.06501171,4197.5,4197.4,1e-08]
[1758599578383,19.11974068,4197.5,4197.4,1e-08]
[1758599578578,18.72058701,4197.5,4197.4,1e-08]
[1758599580310,18.71958701,4197.5,4197.4,1e-08]
[1758599580629,18.47628701,4197.5,4197.4,1e-08]
[1758599580814,12.36728701,4197.5,4197.4,1e-08]
[1758599581116,17.06500422,4197.5,4197.4,0.68700001]
[1758599581301,17.06500422,4197.5,4197.4,1e-08]
[1758599581774,10.95500422,4197.5,4197.4,1e-08]
[1758599581978,12.09658759,4197.5,4197.4,0.68700001]
[1758599582174,14.47895804,4197.5,4197.4,0.68700001]
[1758599582414,14.47893083,4197.5,4197.4,0.68700001]
[1758599582987,12.09656038,4197.5,4197.4,0.68700001]
[1758599583192,10.43093083,4197.5,4197.4,0.68700001]
[1758599583612,14.47893083,4197.5,4197.4,0.68700001]
[1758599583817,12.09656038,4197.5,4197.4,0.68700001]
[1758599584027,4.049,4197.6,4197.4,1.3814357]
[1758599584311,4.049,4197.6,4197.5,0.687]
[1758599584522,4.40580067,4197.6,4197.5,0.687]
[1758599584693,4.049,4197.6,4197.5,1.46231925]
[1758599585912,4.049,4197.6,4197.5,0.687]
[1758599586420,0.001,4197.6,4197.5,3.06937045]
[1758599586589,0.001,4198.0,4197.5,3.06937045]
[1758599586590,0.001,4198.0,4197.8,2.38218389]
[1758599586923,0.001,4198.0,4197.9,6.24935684]
[1758599587095,0.001,4198.0,4197.9,7.29961789]
[1758599587296,0.001,4198.0,4197.9,7.98661789]
[1758599588121,0.001,4198.0,4197.9,10.36876134]
[1758599589429,0.001,4198.0,4197.9,7.98661789]
[1758599590318,2.38230028,4197.7,4197.5,0.4519]
[1758599590639,2.38237045,4197.5,4197.4,1e-08]
[1758599592535,6.42737045,4197.5,4197.4,1e-08]
[1758599593378,4.045,4197.5,4197.4,1e-08]
[1758599593946,6.42737045,4197.5,4197.4,1e-08]
[1758599596039,4.045,4197.5,4197.4,1e-08]
[1758599596639,6.42737045,4197.5,4197.4,1e-08]
[1758599597551,7.47823235,4197.5,4197.4,1e-08]
[1758599597851,8.45930528,4197.5,4197.4,1e-08]
[1758599598040,4.41430528,4197.5,4197.4,1e-08]
[1758599598236,10.00514566,4197.5,4197.4,1e-08]
[1758599598586,8.45830528,4197.5,4197.4,1e-08]
[1758599598764,10.51830528,4197.5,4197.4,1e-08]
[1758599599141,4.41430528,4197.5,4197.4,1e-08]
[1758599599341,10.27310528,4197.5,4197.4,1e-08]
[1758599600264,8.21310528,4197.5,4197.4,1e-08]
[1758599600674,7.29587132,4197.5,4197.4,1e-08]
[1758599601802,7.29587132,4197.5,4197.4,0.45230001]
[1758599601976,7.29587132,4197.5,4197.4,1e-08]
[1758599603479,7.54107132,4197.5,4197.4,1e-08]
[1758599605486,7.29587132,4197.5,4197.4,1e-08]
[1758599605698,8.71498536,4197.5,4197.4,1e-08]
[1758599607477,15.52978536,4197.5,4197.4,1e-08]
[1758599611414,15.77298536,4197.5,4197.4,1e-08]
[1758599614625,15.77318476,4197.5,4197.4,1e-08]
[1758599616337,15.52598476,4197.5,4197.4,1e-08]
[1758599616500,15.52498476,4197.5,4197.4,1e-08]
[1758599616700,10.31007072,4197.5,4197.4,1e-08]
[1758599616908,14.35107072,4197.5,4197.4,0.68860001]
[1758599619322,14.9935169,4197.5,4197.4,0.45230001]
[1758599619637,15.2387169,4197.5,4197.4,1e-08]
[1758599620501,8.57214645,4197.5,4197.4,0.23630001]
[1758599620705,14.35207072,4197.5,4197.4,0.68860001]
[1758599620907,0.001,4197.6,4197.4,0.68860001]
[1758599621134,0.001,4197.6,4197.5,0.6886]
[1758599621434,7.07118536,4197.6,4197.5,0.2363]
[1758599621614,7.29428234,4197.6,4197.5,0.6886]
[1758599621810,2.38237045,4197.5,4197.4,1e-08]
[1758599622039,4.14098527,4197.5,4197.4,1e-08]
[1758599624235,3.49853909,4197.5,4197.4,1e-08]
[1758599625406,3.25333909,4197.5,4197.4,1e-08]
[1758599626110,9.35333909,4197.5,4197.4,1e-08]
[1758599626437,7.29233909,4197.5,4197.4,0.67650001]
[1758599627032,7.29233909,4197.5,4197.4,1e-08]
[1758599627033,3.89623143,4197.5,4197.4,1e-08]
[1758599627336,7.29233909,4197.5,4197.4,0.22510001]
[1758599627525,7.93523143,4197.5,4197.4,1e-08]
[1758599628244,7.29233909,4197.5,4197.4,1e-08]
[1758599628537,9.19473858,4197.5,4197.4,1e-08]
[1758599628738,8.55157063,4197.5,4197.4,1e-08]
[1758599629104,7.29133909,4197.5,4197.4,1e-08]
[1758599629310,7.93449918,4197.5,4197.4,1e-08]
[1758599630788,7.93451574,4197.5,4197.4,1e-08]
[1758599631149,14.99551574,4197.5,4197.4,1e-08]
[1758599632343,14.35233909,4197.5,4197.4,1e-08]
[1758599634043,16.31757063,4197.5,4197.4,1e-08]
[1758599634244,17.40792244,4197.5,4197.4,1e-08]
[1758599634441,16.55017063,4197.5,4197.4,1e-08]
[1758599634672,17.40788829,4197.5,4197.4,1e-08]
[1758599638269,18.62266153,4197.5,4197.4,1e-08]
[1758599638473,17.34317063,4197.5,4197.4,1e-08]
[1758599638691,17.34217063,4197.5,4197.4,1e-08]
[1758599639513,18.62859181,4197.5,4197.4,1e-08]
[1758599640187,13.56599181,4197.5,4197.4,1e-08]
[1758599640500,19.89659181,4197.5,4197.4,1e-08]
[1758599642664,26.63259161,4197.5,4197.4,1e-08]
[1758599642864,3.17442721,4197.4,4197.3,0.004]
[1758599643199,0.792,4197.0,4196.1,0.4514]
[1758599643374,3.0,4196.8,4196.1,0.6765]
[1758599643573,3.0,4196.8,4196.0,0.004]
[1758599643574,12.35073646,4196.8,4196.0,0.004]
[1758599643763,12.35073646,4196.8,4196.4,0.4514]
[1758599644095,12.35073646,4196.8,4196.3,0.2291]
[1758599644300,12.58333646,4196.8,4196.3,0.004]
[1758599644680,12.35073646,4196.8,4196.3,0.004]
[1758599644917,14.27012837,4196.8,4196.3,0.6805]
[1758599645595,8.17312837,4196.8,4196.3,0.6805]
[1758599645807,14.27012837,4196.8,4196.3,0.6805]
[1758599645998,14.50272837,4196.8,4196.3,0.6805]
[1758599646605,14.26989016,4196.8,4196.3,0.4554]
[1758599646786,11.26989016,4196.8,4196.3,0.004]
[1758599646990,11.26989016,4196.8,4196.7,0.6805]
[1758599647311,9.99251091,4196.8,4196.7,0.6805]
[1758599647610,0.87073043,4196.8,4196.7,0.6805]
[1758599647813,4.39295497,4196.8,4196.7,0.6805]
[1758599648020,7.28949825,4196.8,4196.7,0.6805]
[1758599648177,7.28929677,4196.8,4196.7,0.6805]
[1758599648380,4.90652895,4196.8,4196.7,0.6805]
[1758599648602,4.25909698,4196.8,4196.7,0.6805]
[1758599648995,7.28917801,4196.8,4196.7,0.6805]
[1758599649922,7.28918724,4196.8,4196.7,0.6805]
[1758599650130,7.28918724,4196.8,4196.7,0.004]
[1758599650429,8.25637487,4196.8,4196.7,0.004]
[1758599650629,7.28801298,4196.8,4196.7,0.6805]
[1758599650791,7.28801298,4196.8,4196.7,0.2291]
[1758599651130,7.28801298,4196.8,4196.7,0.004]
[1758599651414,7.28801298,4196.8,4196.7,0.6805]